fUSD/lending_fUSD_20250629
["ID","MTS","AMOUNT","RATE_DAILY","PERIOD"]
[368493438,1751190766922,-715.86,0.00030958,3]
[368493439,1751190766931,-934.93,0.00030958,3]
[368493440,1751190766940,-516.29,0.00030958,3]
[368493441,1751190766950,-589.35,0.00030958,3]
[368493442,1751190766959,-2211.02,0.00030958,3]
[368493443,1751190766969,-1313.26,0.00030958,3]
[368493444,1751190766979,-878.98,0.00030958,3]
[368493445,1751190766988,-2018.3,0.00030958,3]
[368493446,1751190766998,-1272.1,0.00030958,3]
[368493447,1751190767008,-2254.95,0.00030958,3]
[368493448,1751190767018,-1320.46,0.00030958,3]
[368493449,1751190767027,-490.0,0.00030958,3]
[368493450,1751190767037,-490.0,0.00030958,3]
[368493451,1751190767047,-801.49,0.00030958,3]
[368493452,1751190767056,-793.92,0.00030958,3]
[368493453,1751190767066,-1409.04,0.00030958,3]
[368493454,1751190767076,-566.98,0.00030958,3]
[368493455,1751190767085,-855.39,0.00030958,3]
[368493456,1751190767094,-520.23,0.00030958,3]
[368493457,1751190767103,-503.31,0.00030958,3]
[368493458,1751190767113,-1383.19,0.00030958,3]
[368493459,1751190767122,-490.0,0.00030958,3]
[368493460,1751190767132,-907.17,0.00030958,3]
[368493461,1751190767141,-490.0,0.00030958,3]
[368493462,1751190767151,-1733.55,0.00030958,3]
[368493463,1751190767161,-1411.93,0.00030958,3]
[368493464,1751190767171,-490.0,0.00030958,3]
[368493465,1751190767180,-1161.29,0.00030958,3]
[368493466,1751190767190,-490.0,0.00030958,3]
[368493467,1751190767199,-648.19,0.00030958,3]
[368493468,1751190767209,-490.0,0.00030958,3]
[368493469,1751190767219,-490.0,0.00030958,3]
[368493470,1751190767228,-664.2,0.00030958,3]
[368493471,1751190767238,-492.59,0.00030958,3]
[368493472,1751190767248,-1411.98,0.00030958,3]
[368493473,1751190767258,-490.0,0.00030958,3]
[368493474,1751190767268,-1476.05,0.00030958,3]
[368493475,1751190767278,-156.69801209,0.00030958,3]
[368493476,1751190767288,-468.8216896,0.00030958,3]
[368493477,1751190767298,-490.0,0.00030958,3]
[368493478,1751190767308,-2483.68,0.00030958,3]
[368493479,1751190767319,-1539.15,0.00030958,3]
[368493480,1751190767329,-622.78,0.00030958,3]
[368493481,1751190767339,-2320.44,0.00030958,3]
[368493482,1751190767348,-894.95,0.00030958,3]
[368493483,1751190767359,-701.41,0.00030958,3]
[368493484,1751190767368,-490.0,0.00030958,3]
[368493485,1751190767377,-526.1,0.00030958,3]
[368493486,1751190767387,-1005.08,0.00030958,3]
[368493487,1751190767397,-1032.78,0.00030958,3]
[368493488,1751190767406,-1199.97,0.00030958,3]
[368493489,1751190767416,-549.61,0.00030958,3]
[368493490,1751190767425,-1283.76,0.00030958,3]
[368493491,1751190767436,-490.0,0.00030958,3]
[368493492,1751190767445,-490.0,0.00030958,3]
[368493493,1751190767456,-901.15,0.00030958,3]
[368493494,1751190767465,-545.6,0.00030958,3]
[368493495,1751190767475,-841.45,0.00030958,3]
[368493496,1751190767485,-525.0,0.00030958,3]
[368493497,1751190767494,-908.9,0.00030958,3]
[368493498,1751190767503,-1956.7,0.00030958,3]
[368493499,1751190767512,-1559.17,0.00030958,3]
[368493500,1751190767521,-490.0,0.00030958,3]
[368493501,1751190767532,-772.36,0.00030958,3]
[368493502,1751190767541,-1731.31,0.00030958,3]
[368493503,1751190767550,-490.0,0.00030958,3]
[368493504,1751190767559,-1241.41,0.00030958,3]
[368493505,1751190767568,-490.0,0.00030958,3]
[368493506,1751190767577,-2257.75,0.00030958,3]
[368493507,1751190767587,-1736.54,0.00030958,3]
[368493508,1751190767596,-2325.03,0.00030958,3]
[368493509,1751190767607,-613.43,0.00030958,3]
[368493510,1751190767616,-1117.78,0.00030958,3]
[368493511,1751190767626,-896.69,0.00030958,3]
[368493512,1751190767636,-998.0,0.00030958,3]
[368493513,1751190767647,-1022.6,0.00030958,3]
[368493514,1751190767657,-1382.19,0.00030958,3]
[368493515,1751190767666,-490.0,0.00030958,3]
[368493516,1751190767675,-1087.69,0.00030958,3]
[368493517,1751190767685,-937.32,0.00030958,3]
[368493518,1751190767693,-490.0,0.00030958,3]
[368493519,1751190767703,-490.0,0.00030958,3]
[368493520,1751190767712,-326.03938196,0.00030958,3]
[368493521,1751190767723,-2003.29,0.00030958,3]
[368493522,1751190767732,-490.0,0.00030958,3]
[368493523,1751190767742,-1073.82,0.00030958,3]
[368493524,1751190767752,-1428.66,0.00030958,3]
[368493525,1751190767762,-490.0,0.00030958,3]
[368493526,1751190767771,-906.56,0.00030958,3]
[368493527,1751190767780,-751.94,0.00030958,3]
[368493528,1751190767790,-1284.2,0.00030958,3]
[368493529,1751190767799,-995.73,0.00030958,3]
[368493530,1751190767809,-730.89,0.00030958,3]
[368493531,1751190767818,-490.0,0.00030958,3]
[368493532,1751190767827,-490.0,0.00030958,3]
[368493533,1751190767836,-490.0,0.00030958,3]
[368493534,1751190767846,-552.8578921,0.00030958,3]
[368493535,1751190767855,-511.01286067,0.00030958,3]
[368493536,1751190767864,-490.0,0.00030958,3]
[368493537,1751190767873,-3819.49,0.00030958,3]
[368493538,1751190767883,-614.58,0.00030958,3]
[368493539,1751190767892,-2099.43,0.00030958,3]
[368493540,1751190767901,-591.09,0.00030958,3]
[368493541,1751190767912,-490.0,0.00030958,3]
[368493542,1751190767923,-1763.09,0.00030958,3]
[368493543,1751190767934,-930.34,0.00030958,3]
[368493544,1751190767944,-1553.22,0.00030958,3]
[368493545,1751190767954,-1288.37,0.00030958,3]
[368493546,1751190767963,-490.0,0.00030958,3]
[368493547,1751190767973,-935.65,0.00030958,3]
[368493548,1751190767982,-490.0,0.00030958,3]
[368493549,1751190767992,-587.32,0.00030958,3]
[368493550,1751190768002,-854.31,0.00030958,3]
[368493551,1751190768011,-490.0,0.00030958,3]
[368493552,1751190768020,-4450.47,0.00030958,3]
[368493553,1751190768031,-490.0,0.00030958,3]
[368493554,1751190768040,-528.19,0.00030958,3]
[368493555,1751190768050,-959.78,0.00030958,3]
[368493556,1751190768059,-490.0,0.00030958,3]
[368493558,1751190768069,-766.16,0.00030958,3]
[368493559,1751190768079,-1454.99,0.00030958,3]
[368493560,1751190768088,-1177.8,0.00030958,3]
[368493562,1751190768098,-490.0,0.00030958,3]
[368493563,1751190768108,-1065.99,0.00030958,3]
[368493564,1751190768118,-490.0,0.00030958,3]
[368493565,1751190768128,-921.89,0.00030958,3]
[368493566,1751190768138,-1049.98,0.00030958,3]
[368493567,1751190768149,-490.0,0.00030958,3]
[368493568,1751190768159,-603.29,0.00030958,3]
[368493569,1751190768168,-490.0,0.00030958,3]
[368493570,1751190768179,-527.02583184,0.00030958,3]
[368493571,1751190768188,-1101.22,0.00030958,3]
[368493572,1751190768198,-555.36,0.00030958,3]
[368493573,1751190768208,-490.0,0.00030958,3]
[368493574,1751190768218,-1690.83,0.00030958,3]
[368493575,1751190768227,-494.25,0.00030958,3]
[368493576,1751190768237,-608.46,0.00030958,3]
[368493577,1751190768247,-916.39,0.00030958,3]
[368493578,1751190768256,-573.71,0.00030958,3]
[368493579,1751190768267,-1033.94,0.00030958,3]
[368493580,1751190768276,-1394.52,0.00030958,3]
[368493581,1751190768285,-841.15,0.00030958,3]
[368493582,1751190768295,-698.3,0.00030958,3]
[368493583,1751190768304,-18048.03,0.00030958,3]
[368493584,1751190768314,-814.68,0.00030958,3]
[368493585,1751190768324,-817.07,0.00030958,3]
[368493586,1751190768334,-994.63,0.00030958,3]
[368493587,1751190768344,-860.32,0.00030958,3]
[368493588,1751190768353,-490.0,0.00030958,3]
[368493589,1751190768363,-1083.78,0.00030958,3]
[368493590,1751190768372,-895.73,0.00030958,3]
[368493591,1751190768382,-1619.71,0.00030958,3]
[368493592,1751190768392,-2039.79,0.00030958,3]
[368493593,1751190768402,-490.0,0.00030958,3]
[368493594,1751190768412,-490.0,0.00030958,3]
[368493595,1751190768422,-627.15,0.00030958,3]
[368493596,1751190768432,-461.7757278,0.00030958,3]
[368493597,1751190768446,-1338.17,0.00030958,3]
[368493598,1751190768456,-522.56,0.00030958,3]
[368493599,1751190768466,-5045.19,0.00030958,3]
[368493600,1751190768476,-732.19,0.00030958,3]
[368493601,1751190768485,-490.0,0.00030958,3]
[368493602,1751190768496,-490.0,0.00030958,3]
[368493603,1751190768505,-2735.95,0.00030958,3]
[368493604,1751190768515,-250.67501696,0.00030958,3]
[368493605,1751190768525,-1159.62,0.00030958,3]
[368493606,1751190768534,-557.27,0.00030958,3]
[368493607,1751190768544,-490.0,0.00030958,3]
[368493608,1751190768554,-1735.18,0.00030958,3]
[368493609,1751190768564,-2798.62,0.00030958,3]
[368493610,1751190768574,-490.0,0.00030958,3]
[368493611,1751190768583,-795.99,0.00030958,3]
[368493612,1751190768592,-490.0,0.00030958,3]
[368493613,1751190768602,-2632.4,0.00030958,3]
[368493614,1751190768611,-2676.96,0.00030958,3]
[368493615,1751190768621,-890.5,0.00030958,3]
[368493616,1751190768630,-815.43,0.00030958,3]
[368493617,1751190768640,-490.0,0.00030958,3]
[368493618,1751190768649,-2287.33,0.00030958,3]
[368493619,1751190768658,-584.92502975,0.00030958,3]
[368493620,1751190768667,-7199.68,0.00030958,3]
[368493621,1751190768677,-1083.86,0.00030958,3]
[368493622,1751190768686,-1198.65,0.00030958,3]
[368493623,1751190768696,-490.0,0.00030958,3]
[368493624,1751190768705,-564.45,0.00030958,3]
[368493625,1751190768714,-4926.93,0.00030958,3]
[368493626,1751190768723,-2111.85,0.00030958,3]
[368493627,1751190768732,-2504.77,0.00030958,3]
[368493628,1751190768742,-670.5,0.00030958,3]
[368493629,1751190768751,-9168.68,0.00030958,3]
[368493630,1751190768760,-1466.04,0.00030958,3]
[368493631,1751190768770,-148479.19,0.00030958,3]
[368493632,1751190768779,-995.99,0.00030958,3]
[368493633,1751190768788,-884.61,0.00030958,3]
[368493634,1751190768798,-1110.23,0.00030958,3]
[368493635,1751190768807,-3927.92,0.00030958,3]
[368493636,1751190768817,-1262.58,0.00030958,3]
[368493637,1751190768826,-490.0,0.00030958,3]
[368493638,1751190768836,-1550.57,0.00030958,3]
[368493639,1751190768845,-490.0,0.00030958,3]
[368493640,1751190768854,-799.02,0.00030958,3]
[368493641,1751190768863,-4423.72,0.00030958,3]
[368493642,1751190768873,-1420.75,0.00030958,3]
[368493643,1751190768883,-490.0,0.00030958,3]
[368493644,1751190768893,-2359.81,0.00030958,3]
[368493645,1751190768903,-612.29,0.00030958,3]
[368493646,1751190768912,-2220.09,0.00030958,3]
[368493647,1751190768923,-490.0,0.00030958,3]
[368493648,1751190768933,-490.0,0.00030958,3]
[368493649,1751190768943,-1116.8,0.00030958,3]
[368493650,1751190768953,-1906.36,0.00030958,3]
[368493651,1751190768963,-850.38,0.00030958,3]
[368493652,1751190768973,-2198.76,0.00030958,3]
[368493653,1751190768983,-1730.15,0.00030958,3]
[368493654,1751190768992,-1635.41,0.00030958,3]
[368493655,1751190769002,-1477.82,0.00030958,3]
[368493656,1751190769013,-3000.74,0.00030958,3]
[368493657,1751190769023,-495.37,0.00030958,3]
[368493658,1751190769033,-924.29,0.00030958,3]
[368493659,1751190769043,-818.08,0.00030958,3]
[368493660,1751190769054,-1537.71,0.00030958,3]
[368493661,1751190769064,-1894.35,0.00030958,3]
[368493662,1751190769074,-590.95,0.00030958,3]
[368493663,1751190769084,-1565.54,0.00030958,3]
[368493664,1751190769095,-707.33,0.00030958,3]
[368493665,1751190769105,-854.62,0.00030958,3]
[368493666,1751190769115,-490.0,0.00030958,3]
[368493667,1751190769125,-1990.15,0.00030958,3]
[368493668,1751190769136,-2120.63,0.00030958,3]
[368493669,1751190769146,-490.0,0.00030958,3]
[368493670,1751190769157,-501.24,0.00030958,3]
[368493671,1751190769167,-1303.39,0.00030958,3]
[368493672,1751190769178,-490.0,0.00030958,3]
[368493673,1751190769189,-490.0,0.00030958,3]
[368493674,1751190769201,-2057.83,0.00030958,3]
[368493675,1751190769211,-1066.81,0.00030958,3]
[368493676,1751190769221,-1078.53,0.00030958,3]
[368493677,1751190769231,-2549.31,0.00030958,3]
[368493678,1751190769241,-829.05,0.00030958,3]
[368493679,1751190769251,-1514.01,0.00030958,3]
[368493680,1751190769352,-709.69,0.00030958,3]
[368493681,1751190769392,-490.0,0.00030958,3]
[368493682,1751190769403,-1413.24,0.00030958,3]
[368493683,1751190769413,-499.7,0.00030958,3]
[368493684,1751190769423,-490.0,0.00030958,3]
[368493685,1751190769433,-490.0,0.00030958,3]
[368493686,1751190769446,-7138.85,0.00030958,3]
[368493687,1751190769457,-1903.95,0.00030958,3]
[368493688,1751190769466,-1126.76,0.00030958,3]
[368493689,1751190769475,-490.0,0.00030958,3]
[368493690,1751190769486,-1687.9,0.00030958,3]
[368493691,1751190769495,-1199.32,0.00030958,3]
[368493692,1751190769505,-605.34,0.00030958,3]
[368493693,1751190769516,-624.57,0.00030958,3]
[368493694,1751190769525,-1080.18,0.00030958,3]
[368493695,1751190769535,-490.0,0.00030958,3]
[368493696,1751190769545,-1902.03,0.00030958,3]
[368493697,1751190769554,-685.5,0.00030958,3]
[368493698,1751190769563,-985.04,0.00030958,3]
[368493699,1751190769572,-809.87,0.00030958,3]
[368493700,1751190769582,-2277.33,0.00030958,3]
[368493701,1751190769591,-3579.22,0.00030958,3]
[368493702,1751190769601,-490.0,0.00030958,3]
[368493703,1751190769611,-1202.94,0.00030958,3]
[368493704,1751190769620,-1406.03,0.00030958,3]
[368493705,1751190769631,-1369.16,0.00030958,3]
[368493706,1751190769640,-2322.41,0.00030958,3]
[368493707,1751190769649,-11425.24,0.00030958,3]
[368493708,1751190769659,-936.2,0.00030958,3]
[368493709,1751190769668,-892.36,0.00030958,3]
[368493710,1751190769679,-7389.77,0.00030958,3]
[368493711,1751190769688,-2363.6,0.00030958,3]
[368493712,1751190769698,-1344.12,0.00030958,3]
[368493713,1751190769707,-490.0,0.00030958,3]
[368493714,1751190769717,-490.0,0.00030958,3]
[368493715,1751190769726,-1010.37,0.00030958,3]
[368493716,1751190769736,-3943.02,0.00030958,3]
[368493717,1751190769746,-719.55,0.00030958,3]
[368493718,1751190769757,-962.36,0.00030958,3]
[368493719,1751190769766,-2127.37,0.00030958,3]
[368493720,1751190769776,-3378.38,0.00030958,3]
[368493721,1751190769787,-1167.04,0.00030958,3]
[368493722,1751190769798,-2325.84,0.00030958,3]
[368493723,1751190769808,-1319.73,0.00030958,3]
[368493724,1751190769818,-509.95,0.00030958,3]
[368493725,1751190769829,-613.68,0.00030958,3]
[368493726,1751190769839,-490.0,0.00030958,3]
[368493727,1751190769850,-2715.66,0.00030958,3]
[368493728,1751190769859,-1294.86,0.00030958,3]
[368493729,1751190769869,-1043.95,0.00030958,3]
[368493730,1751190769879,-1355.41,0.00030958,3]
[368493731,1751190769888,-2207.5,0.00030958,3]
[368493732,1751190769898,-4741.41,0.00030958,3]
[368493733,1751190769908,-545.36,0.00030958,3]
[368493734,1751190769918,-1588.45,0.00030958,3]
[368493735,1751190769929,-490.0,0.00030958,3]
[368493736,1751190769939,-490.0,0.00030958,3]
[368493737,1751190769949,-826.61,0.00030958,3]
[368493738,1751190769958,-3228.0,0.00030958,3]
[368493739,1751190769968,-490.0,0.00030958,3]
[368493740,1751190769978,-886.06,0.00030958,3]
[368493741,1751190769987,-1424.96,0.00030958,3]
[368493742,1751190769996,-9205.97,0.00030958,3]
[368493743,1751190770006,-1170.72,0.00030958,3]
[368493744,1751190770015,-490.0,0.00030958,3]
[368493745,1751190770025,-2306.21,0.00030958,3]
[368493746,1751190770035,-3412.3,0.00030958,3]
[368493747,1751190770045,-728.26,0.00030958,3]
[368493748,1751190770055,-1625.19,0.00030958,3]
[368493749,1751190770065,-490.0,0.00030958,3]
[368493750,1751190770074,-1125.2,0.00030958,3]
[368493751,1751190770084,-736.63,0.00030958,3]
[368493752,1751190770093,-1386.0,0.00030958,3]
[368493753,1751190770104,-1073.8,0.00030958,3]
[368493754,1751190770114,-2006.57,0.00030958,3]
[368493755,1751190770124,-1530.28,0.00030958,3]
[368493756,1751190770135,-490.0,0.00030958,3]
[368493757,1751190770145,-2091.51,0.00030958,3]
[368493758,1751190770155,-2126.77,0.00030958,3]
[368493759,1751190770164,-1779.52,0.00030958,3]
[368493760,1751190770175,-490.0,0.00030958,3]
[368493761,1751190770184,-490.0,0.00030958,3]
[368493762,1751190770194,-1673.45,0.00030958,3]
[368493763,1751190770204,-1303.39,0.00030958,3]
[368493764,1751190770213,-4507.51,0.00030958,3]
[368493765,1751190770223,-776.8,0.00030958,3]
[368493766,1751190770232,-2000.1,0.00030958,3]
[368493767,1751190770242,-490.0,0.00030958,3]
[368493768,1751190770252,-3480.9,0.00030958,3]
[368493769,1751190770262,-1935.08,0.00030958,3]
[368493770,1751190770272,-1632.66,0.00030958,3]
[368493771,1751190770281,-1569.37,0.00030958,3]
[368493772,1751190770291,-2530.56,0.00030958,3]
[368493773,1751190770299,-2452.49,0.00030958,3]
[368493774,1751190770309,-490.0,0.00030958,3]
[368493775,1751190770318,-1489.85,0.00030958,3]
[368493776,1751190770328,-490.0,0.00030958,3]
[368493777,1751190770337,-490.0,0.00030958,3]
[368493778,1751190770346,-1193.32,0.00030958,3]
[368493779,1751190770355,-2419.87,0.00030958,3]
[368493780,1751190770365,-588.25,0.00030958,3]
[368493781,1751190770374,-1993.35,0.00030958,3]
[368493782,1751190770383,-3522.67,0.00030958,3]
[368493783,1751190770392,-1690.76,0.00030958,3]
[368493784,1751190770402,-2018.73,0.00030958,3]
[368493785,1751190770411,-490.0,0.00030958,3]
[368493786,1751190770420,-2069.08,0.00030958,3]
[368493787,1751190770429,-490.0,0.00030958,3]
[368493788,1751190770441,-2243.02,0.00030958,3]
[368493789,1751190770450,-1621.16,0.00030958,3]
[368493790,1751190770459,-2803.72,0.00030958,3]
[368493791,1751190770469,-490.0,0.00030958,3]
[368493792,1751190770479,-1156.58,0.00030958,3]
[368493793,1751190770488,-697.23,0.00030958,3]
[368493794,1751190770498,-490.0,0.00030958,3]
[368493795,1751190770508,-2344.83,0.00030958,3]
[368493796,1751190770518,-2317.49,0.00030958,3]
[368493797,1751190770530,-490.0,0.00030958,3]
[368493798,1751190770541,-1455.99,0.00030958,3]
[368493799,1751190770551,-896.46,0.00030958,3]
[368493800,1751190770560,-2847.6,0.00030958,3]
[368493801,1751190770570,-1697.89,0.00030958,3]
[368493802,1751190770579,-490.0,0.00030958,3]
[368493803,1751190770588,-1196.0,0.00030958,3]
[368493804,1751190770597,-490.0,0.00030958,3]
[368493805,1751190770606,-4069.2,0.00030958,3]
[368493806,1751190770615,-1620.63,0.00030958,3]
[368493807,1751190770625,-24643.72,0.00030958,3]
[368493808,1751190770634,-498.07,0.00030958,3]
[368493809,1751190770643,-3762.98,0.00030958,3]
[368493810,1751190770653,-499.82,0.00030958,3]
[368493811,1751190770662,-1069.72,0.00030958,3]
[368493812,1751190770672,-725.1,0.00030958,3]
[368493813,1751190770683,-4782.64,0.00030958,3]
[368493814,1751190770694,-1100.83,0.00030958,3]
[368493815,1751190770704,-1824.13,0.00030958,3]
[368493816,1751190770713,-2504.1,0.00030958,3]
[368493817,1751190770723,-1607.63,0.00030958,3]
[368493818,1751190770735,-1132.25,0.00030958,3]
[368493819,1751190770745,-11678.75,0.00030958,3]
[368493820,1751190770755,-3607.16,0.00030958,3]
[368493821,1751190770766,-674.39,0.00030958,3]
[368493822,1751190770775,-2388.21,0.00030958,3]
[368493823,1751190770784,-490.0,0.00030958,3]
[368493824,1751190770794,-632.01,0.00030958,3]
[368493825,1751190770804,-3749.55,0.00030958,3]
[368493826,1751190770814,-2478.96,0.00030958,3]
[368493827,1751190770824,-536.71,0.00030958,3]
[368493828,1751190770834,-1798.53,0.00030958,3]
[368493829,1751190770844,-3221.5,0.00030958,3]
[368493830,1751190770854,-490.0,0.00030958,3]
[368493831,1751190770864,-1629.68,0.00030958,3]
[368493832,1751190770873,-1535.71,0.00030958,3]
[368493833,1751190770883,-548.24,0.00030958,3]
[368493834,1751190770892,-2263.99,0.00030958,3]
[368493835,1751190770901,-1677.32,0.00030958,3]
[368493836,1751190770911,-6718.76,0.00030958,3]
[368493837,1751190770921,-1322.58,0.00030958,3]
[368493838,1751190770931,-18559.3,0.00030958,3]
[368493839,1751190770941,-857.93,0.00030958,3]
[368493840,1751190770951,-553.18,0.00030958,3]
[368493841,1751190770961,-490.0,0.00030958,3]
[368493842,1751190770971,-2586.37,0.00030958,3]
[368493843,1751190770980,-987.81,0.00030958,3]
[368493844,1751190770990,-1263.2,0.00030958,3]
[368493845,1751190770999,-698.11,0.00030958,3]
[368493846,1751190771009,-3862.63,0.00030958,3]
[368493847,1751190771019,-826.74,0.00030958,3]
[368493848,1751190771029,-206.16011351,0.00030958,3]
[368493849,1751190771038,-1943.16,0.00030958,3]
[368493850,1751190771047,-4122.27,0.00030958,3]
[368493851,1751190771056,-490.0,0.00030958,3]
[368493852,1751190771066,-490.0,0.00030958,3]
[368493853,1751190771075,-490.0,0.00030958,3]
[368493854,1751190771084,-490.0,0.00030958,3]
[368493855,1751190771093,-490.0,0.00030958,3]
[368493856,1751190771103,-1385.92,0.00030958,3]
[368493857,1751190771112,-1552.69,0.00030958,3]
[368493858,1751190771121,-5320.1,0.00030958,3]
[368493859,1751190771131,-490.0,0.00030958,3]
[368493860,1751190771140,-2723.89,0.00030958,3]
[368493861,1751190771150,-620.43,0.00030958,3]
[368493862,1751190771159,-4529.09,0.00030958,3]
[368493863,1751190771168,-1307.14,0.00030958,3]
[368493864,1751190771178,-2896.25,0.00030958,3]
[368493865,1751190771188,-2347.57,0.00030958,3]
[368493866,1751190771197,-1874.39,0.00030958,3]
[368493867,1751190771206,-2024.74,0.00030958,3]
[368493868,1751190771215,-919.31,0.00030958,3]
[368493869,1751190771224,-5682.59,0.00030958,3]
[368493870,1751190771233,-490.0,0.00030958,3]
[368493871,1751190771243,-2104.31,0.00030958,3]
[368493872,1751190771252,-1968.64,0.00030958,3]
[368493873,1751190771261,-626.13,0.00030958,3]
[368493874,1751190771271,-2133.2,0.00030958,3]
[368493875,1751190771281,-1770.11,0.00030958,3]
[368493876,1751190771291,-1764.06,0.00030958,3]
[368493877,1751190771303,-700.52,0.00030958,3]
[368493878,1751190771313,-1730.13,0.00030958,3]
[368493879,1751190771323,-490.0,0.00030958,3]
[368493880,1751190771332,-2165.68,0.00030958,3]
[368493881,1751190771342,-513.72,0.00030958,3]
[368493882,1751190771351,-883.4,0.00030958,3]
[368493883,1751190771361,-1926.75,0.00030958,3]
[368493884,1751190771371,-5921.12,0.00030958,3]
[368493885,1751190771381,-490.0,0.00030958,3]
[368493886,1751190771390,-2141.99,0.00030958,3]
[368493887,1751190771400,-2043.04,0.00030958,3]
[368493888,1751190771410,-490.0,0.00030958,3]
[368493889,1751190771419,-631.01,0.00030958,3]
[368493890,1751190771428,-855.58,0.00030958,3]
[368493891,1751190771437,-696.89,0.00030958,3]
[368493892,1751190771451,-1625.9,0.00030958,3]
[368493893,1751190771461,-3241.41,0.00030958,3]
[368493894,1751190771470,-3866.16,0.00030958,3]
[368493895,1751190771481,-2087.25,0.00030958,3]
[368493896,1751190771491,-1891.34,0.00030958,3]
[368493897,1751190771501,-4543.11,0.00030958,3]
[368493898,1751190771511,-569.82,0.00030958,3]
[368493899,1751190771520,-1931.12,0.00030958,3]
[368493900,1751190771821,-490.0,0.00030958,3]
[368493901,1751190771833,-1948.57,0.00030958,3]
[368493902,1751190771844,-1323.16,0.00030958,3]
[368493903,1751190771854,-971.22,0.00030958,3]
[368493904,1751190771863,-6890.33,0.00030958,3]
[368493905,1751190771873,-490.0,0.00030958,3]
[368493906,1751190771882,-961.28,0.00030958,3]
[368493907,1751190771891,-1740.09,0.00030958,3]
[368493908,1751190771902,-1509.17,0.00030958,3]
[368493909,1751190771911,-2526.68,0.00030958,3]
[368493910,1751190771920,-1923.32,0.00030958,3]
[368493911,1751190771930,-802.0,0.00030959,3]
[368493912,1751190771939,-500.0,0.00030959,3]
[368493913,1751190771949,-500.0,0.00030959,3]
[368493914,1751190771958,-453.0,0.00030959,3]
[368493915,1751190771968,-150.0,0.00030969,7]
[368493916,1751190771978,-150.0,0.00030971,7]
[368493917,1751190771988,-150.0,0.00030998,7]
[368493918,1751190771998,-500.0,0.00031,2]
[368493919,1751190772008,-3718.75984892,0.00031,120]
[368493920,1751190772018,-312.68872601,0.00031007,7]
[368493921,1751190772028,-294.80816015,0.00031007,7]
[368493922,1751190772039,-150.0,0.00031007,7]
[368493923,1751190772049,-200.773,0.00031023,2]
[368493924,1751190772058,-946.0,0.00031023,2]
[368493925,1751190772068,-1163.0,0.00031023,2]
[368493926,1751190772078,-4104.0,0.00031023,2]
[368493927,1751190772088,-156.0,0.00031023,2]
[368493928,1751190772098,-2332.071,0.00031023,2]
[368493929,1751190772107,-886.0,0.00031023,2]
[368493930,1751190772117,-2043.46130184,0.00031038,24]
[368493931,1751190772126,-150.0,0.00031051,7]
[368493932,1751190772136,-150.0,0.00031054,7]
[368493933,1751190772146,-312.68872601,0.00031074,7]
[368493934,1751190772155,-294.80816015,0.00031074,7]
[368493935,1751190772165,-150.0,0.00031093,7]
[368493936,1751190772175,-150.0,0.00031096,7]
[368493937,1751190772185,-150.0,0.00031102,7]
[368493938,1751190772195,-150.0,0.00031109,7]
[368493939,1751190772205,-150.0,0.00031131,7]